fUSD/lending_fUSD_20260217
["ID","MTS","AMOUNT","RATE_DAILY","PERIOD"]
[405836181,1771349456752,-250.0,0.00017998,3]
[405836182,1771349456770,-250.0,0.00017998,3]
[405836183,1771349456780,-500.0,0.00017998,3]
[405836184,1771349456789,-250.0,0.00017998,3]
[405836185,1771349456800,-250.0,0.00017998,3]
[405836186,1771349456809,-500.0,0.00017998,3]
[405836187,1771349456819,-250.0,0.00017998,3]
[405836188,1771349456829,-250.0,0.00017998,3]
[405836189,1771349456838,-250.0,0.00017998,3]
[405836190,1771349456847,-250.0,0.00017998,3]
[405836191,1771349456856,-250.0,0.00017998,3]
[405836192,1771349456866,-250.0,0.00017998,3]
[405836193,1771349456875,-162.380719,0.00017998,3]
[405836194,1771349456885,-250.0,0.00017998,3]
[405836195,1771349456895,-168.3888056,0.00017998,3]
[405836196,1771349456905,-250.0,0.00017998,3]
[405836197,1771349456915,-250.0,0.00017998,3]
[405836198,1771349456924,-174.61919141,0.00017998,3]
[405836199,1771349456934,-250.0,0.00017998,3]
[405836200,1771349456943,-250.0,0.00017998,3]
[405836201,1771349456953,-250.0,0.00017998,3]
[405836202,1771349456962,-250.0,0.00017998,3]
[405836203,1771349456972,-250.0,0.00017998,3]
[405836204,1771349456981,-250.0,0.00017998,3]
[405836205,1771349456990,-250.0,0.00017998,3]
[405836206,1771349456999,-181.08010149,0.00017998,3]
[405836207,1771349457008,-187.78006525,0.00017998,3]
[405836208,1771349457017,-693.3919763,0.00017998,3]
[405836209,1771349457026,-194.72792766,0.00017998,3]
[405836210,1771349457035,-719.04747942,0.00017998,3]
[405836211,1771349457044,-241.88745957,0.00017998,3]
[405836212,1771349457055,-745.65223616,0.00017998,3]
[405836213,1771349457064,-773.2413689,0.00017998,3]
[405836214,1771349457073,-801.85129955,0.00017998,3]
[405836215,1771349457082,-831.51979763,0.00017998,3]
[405836216,1771349457091,-862.28603014,0.00017998,3]
[405836217,1771349457101,-894.19061326,0.00017998,3]
[405836218,1771349457109,-927.27566595,0.00017998,3]
[405836219,1771349457120,-961.58486559,0.00017998,3]
[405836220,1771349457129,-997.16350561,0.00017998,3]
[405836221,1771349457139,-274.66803602,0.00017999,2]
[405836222,1771349457147,-300.0,0.00017999,2]
[405836223,1771349457156,-734.14958432,0.00017999,2]
[405836224,1771349457166,-229.97567885,0.00017999,2]
[405836225,1771349457175,-300.0,0.00017999,2]
[405836226,1771349457184,-300.0,0.00017999,2]
[405836227,1771349457193,-666.0,0.00017999,2]
[405836228,1771349457203,-300.0,0.00017999,2]
[405836229,1771349457213,-300.0,0.00017999,2]
[405836230,1771349457222,-666.0,0.00017999,2]
[405836231,1771349457231,-300.0,0.00017999,2]
[405836232,1771349457240,-300.0,0.00017999,2]
[405836233,1771349457249,-300.0,0.00017999,2]
[405836234,1771349457258,-666.0,0.00017999,2]
[405836235,1771349457267,-150.0,0.00017999,2]
[405836236,1771349457277,-150.0,0.00017999,2]
[405836237,1771349457286,-150.0,0.00017999,2]
[405836238,1771349457297,-150.0,0.00017999,2]
[405836239,1771349457306,-150.0,0.00017999,2]
[405836240,1771349457315,-150.0,0.00017999,2]
[405836241,1771349457325,-150.0,0.00017999,2]
[405836242,1771349457334,-150.0,0.00017999,2]
[405836243,1771349457343,-150.0,0.00017999,2]
[405836244,1771349457353,-150.0,0.00017999,2]
[405836245,1771349457362,-166.80967626,0.00017999,2]
[405836246,1771349457371,-13112.95811008,0.00017999,2]
[405836247,1771349457380,-262.13935403,0.00018,2]
[405836248,1771349457389,-501196.42500348,0.00018,2]
[405836249,1771349457399,-5000.0,0.00018,2]
[405836250,1771349457408,-1559760.68740817,0.00018,2]
[405836251,1771349457418,-7514.99024711,0.00018,2]
[405836252,1771349457431,-94810.09182996,0.00018,2]
[405836253,1771349458054,-12261.14410848,0.00018,2]
[405836254,1771349458066,-1965.0,0.00018,2]
[405836255,1771349458077,-1960.0,0.00018,2]
[405836256,1771349458091,-255123.93978011,0.00018,2]
[405836257,1771349458103,-542.688,0.00018,2]
[405836258,1771349458116,-337.625,0.00018,2]
[405836259,1771349458128,-380.30947352,0.00018,2]
[405836260,1771349458281,-200.0,0.00013699,2]
[405836261,1771349458290,-32389.10714352,0.00018,2]
[405836262,1771349458303,-290.0,0.00018,2]
[405836263,1771349458326,-2010.39881757,0.00018,2]
[405836264,1771349458338,-6341.05266088,0.00018,2]
[405836265,1771349458349,-261.999998,0.00018,2]
[405836266,1771349458361,-1016.49353724,0.00018,2]
[405836267,1771349458373,-1742.74423597,0.00018,2]
[405836268,1771349458394,-1847.17852284,0.00018,2]
[405836269,1771349458406,-68578.93823183,0.00018,2]
[405836270,1771349458546,-5632.25459061,0.00018,2]
[405836271,1771349458585,-297.46,0.00018,2]
[405836272,1771349458597,-4074.12,0.00018,2]
[405836273,1771349458610,-19610.0,0.00018,2]
[405836274,1771349458622,-480.65084,0.00018,2]
[405836275,1771349458645,-6074.17994904,0.00018,2]
[405836276,1771349458657,-883.4800005,0.00018,2]
[405836277,1771349458668,-4133.7999997,0.00018,2]
[405836278,1771349458681,-423.26907928,0.00018,2]
[405836279,1771349795373,2000.0,0.00018,30]
[405836280,1771349808740,1000.0,0.00019,120]
[405836282,1771349877481,-391.0,7.388e-05,2]
[405836283,1771349877504,-151.0,7.468e-05,2]
[405836284,1771349877534,-430458.0,7.471e-05,2]
[405836285,1771349930385,-300.0,7.47e-05,2]
[405836286,1771349930407,-419.8374872,7.47e-05,2]
[405836287,1771349930429,-212.2933511,7.47e-05,2]
[405836288,1771349930452,-215.17571904,7.47e-05,2]
[405836289,1771349930475,-49852.69344266,7.471e-05,2]
[405836290,1771349982348,-300.0,7.47e-05,2]
[405836291,1771349982370,-150.0,7.47e-05,2]
[405836292,1771349982391,-300.0,7.47e-05,2]
[405836293,1771349982415,-122250.0,7.471e-05,2]
[405836294,1771350007267,153.0,7.471e-05,3]
[405836295,1771350139080,-300.0,7.321e-05,2]
[405836296,1771350139108,-300.0,7.321e-05,2]
[405836297,1771350139134,-250.0,7.322e-05,2]
[405836298,1771350139165,-1092.724,7.322e-05,2]
[405836299,1771350139248,-6114.562,7.322e-05,2]
[405836300,1771350145006,-702.889,7.322e-05,2]
[405836301,1771350145034,-184.18,7.4e-05,2]
[405836302,1771350145061,-1200.0,7.47e-05,2]
[405836303,1771350145090,-213.0,7.47e-05,2]
[405836304,1771350145119,-150.0,7.47e-05,2]
[405836305,1771350206459,-150.0,0.00012558,7]
[405836306,1771350207959,-150.0,0.00012558,7]
[405836307,1771350209048,-105.62111879,0.00012558,7]
[405836308,1771350241248,300.0,7.37e-05,2]
[405836309,1771350275893,293.88624104,7.37e-05,2]
[405836310,1771350276970,500.0,7.37e-05,2]
[405836311,1771350277007,500.0,7.37e-05,2]
[405836312,1771350277051,500.0,7.37e-05,2]
[405836313,1771350277088,500.0,7.37e-05,2]
[405836314,1771350277134,500.0,7.37e-05,2]
[405836315,1771350277172,500.0,7.37e-05,2]
[405836316,1771350277209,500.0,7.37e-05,2]
[405836317,1771350277246,500.0,7.37e-05,2]
[405836318,1771350277640,500.0,7.37e-05,2]
[405836319,1771350277680,500.0,7.37e-05,2]
[405836320,1771350277741,500.0,7.37e-05,2]
[405836321,1771350277784,500.0,7.37e-05,2]
[405836322,1771350277824,500.0,7.37e-05,2]
[405836323,1771350277862,500.0,7.37e-05,2]
[405836324,1771350277920,500.0,7.37e-05,2]
[405836325,1771350277958,500.0,7.37e-05,2]
[405836326,1771350277990,500.0,7.37e-05,2]
[405836327,1771350278021,500.0,7.37e-05,2]
[405836328,1771350278064,406.12375896,7.37e-05,2]
[405836329,1771350278090,93.87624104,7.37e-05,2]
[405836330,1771350278123,583.84127164,7.37e-05,2]
[405836331,1771350301392,1200.0,7.37e-05,2]
[405836332,1771350303325,300.0,7.37e-05,2]
[405836333,1771350303545,150.0,7.37e-05,2]
[405836334,1771350310200,153.0,7.471e-05,3]
[405836339,1771350421634,300.0,7.37e-05,2]
[405836346,1771350451193,151.0,7.368e-05,2]
[405836347,1771350461382,26947.96330629,7.2e-05,3]
[405836348,1771350461422,11331.83302251,7.2e-05,3]
[405836349,1771350461445,7221.29248732,7.2e-05,3]
[405836350,1771350461467,10000.01,7.2e-05,3]
[405836351,1771350461488,10000.01,7.2e-05,3]
[405836352,1771350631394,-1500.0,7.178e-05,2]
[405836353,1771350631501,-336.9,7.178e-05,2]
[405836354,1771350631513,-2204.1,7.178e-05,2]
[405836355,1771350631522,-300.0,7.198e-05,2]
[405836356,1771350631531,-1200.0,7.198e-05,2]
[405836357,1771350631542,-150.0,7.199e-05,2]
[405836358,1771350631551,-300.0,7.199e-05,2]
[405836359,1771350631560,-500.0,7.199e-05,2]
[405836360,1771350631569,-500.0,7.199e-05,2]
[405836361,1771350631578,-500.0,7.199e-05,2]
[405836362,1771350631588,-500.0,7.199e-05,2]
[405836363,1771350631597,-500.0,7.199e-05,2]
[405836364,1771350631607,-500.0,7.199e-05,2]
[405836365,1771350631616,-500.0,7.199e-05,2]
[405836366,1771350631626,-500.0,7.199e-05,2]
[405836367,1771350631635,-500.0,7.199e-05,2]
[405836368,1771350631644,-500.0,7.199e-05,2]
[405836369,1771350631654,-500.0,7.199e-05,2]
[405836371,1771350631663,-500.0,7.199e-05,2]
[405836373,1771350631672,-500.0,7.199e-05,2]
[405836375,1771350631681,-500.0,7.199e-05,2]
[405836377,1771350631691,-500.0,7.199e-05,2]
[405836379,1771350631700,-500.0,7.199e-05,2]
[405836381,1771350631710,-500.0,7.199e-05,2]
[405836383,1771350631719,-359.01326748,7.199e-05,2]
[405836385,1771350631728,-500.0,7.199e-05,2]
[405836388,1771350631737,-500.0,7.199e-05,2]
[405836390,1771350631747,-500.0,7.199e-05,2]
[405836393,1771350631756,-500.0,7.199e-05,2]
[405836395,1771350631765,-500.0,7.199e-05,2]
[405836396,1771350631775,-500.0,7.199e-05,2]
[405836397,1771350631788,-500.0,7.199e-05,2]
[405836398,1771350631798,-500.0,7.199e-05,2]
[405836399,1771350631807,-500.0,7.199e-05,2]
[405836400,1771350631817,-500.0,7.199e-05,2]
[405836401,1771350631829,-500.0,7.199e-05,2]
[405836402,1771350631839,-500.0,7.199e-05,2]
[405836403,1771350631849,-500.0,7.199e-05,2]
[405836404,1771350631860,-500.0,7.199e-05,2]
[405836405,1771350631870,-500.0,7.199e-05,2]
[405836406,1771350631879,-500.0,7.199e-05,2]
[405836407,1771350631889,-500.0,7.199e-05,2]
[405836408,1771350631898,-500.0,7.199e-05,2]
[405836409,1771350631909,-500.0,7.199e-05,2]
[405836410,1771350631919,-500.0,7.199e-05,2]
[405836411,1771350631928,-500.0,7.199e-05,2]
[405836412,1771350631937,-500.0,7.199e-05,2]
[405836413,1771350631947,-500.0,7.199e-05,2]
[405836414,1771350631956,-500.0,7.199e-05,2]
[405836415,1771350631965,-500.0,7.199e-05,2]
[405836416,1771350631975,-500.0,7.199e-05,2]
[405836417,1771350631985,-500.0,7.199e-05,2]
[405836418,1771350631995,-500.0,7.199e-05,2]
[405836419,1771350632004,-500.0,7.199e-05,2]
[405836420,1771350632014,-500.0,7.199e-05,2]
[405836421,1771350632024,-500.0,7.199e-05,2]
[405836422,1771350632033,-500.0,7.199e-05,2]
[405836423,1771350632042,-500.0,7.199e-05,2]
[405836424,1771350632051,-500.0,7.199e-05,2]
[405836425,1771350632061,-500.0,7.199e-05,2]
[405836426,1771350632070,-500.0,7.199e-05,2]
[405836427,1771350632079,-377.31851686,7.199e-05,2]
[405836428,1771350632088,-500.0,7.199e-05,2]
[405836429,1771350632098,-500.0,7.199e-05,2]
[405836430,1771350632107,-500.0,7.199e-05,2]
[405836431,1771350632116,-500.0,7.199e-05,2]
[405836432,1771350632125,-500.0,7.199e-05,2]
[405836433,1771350632135,-500.0,7.199e-05,2]
[405836434,1771350632144,-431.11940738,7.199e-05,2]
[405836435,1771350632153,-500.0,7.199e-05,2]
[405836436,1771350632163,-500.0,7.199e-05,2]
[405836437,1771350632181,-500.0,7.199e-05,2]
[405836438,1771350632192,-500.0,7.199e-05,2]
[405836439,1771350632202,-500.0,7.199e-05,2]
[405836440,1771350632211,-500.0,7.199e-05,2]
[405836441,1771350632223,-500.0,7.199e-05,2]
[405836442,1771350632232,-500.0,7.199e-05,2]
[405836443,1771350632241,-500.0,7.199e-05,2]
[405836444,1771350632251,-500.0,7.199e-05,2]
[405836445,1771350632261,-500.0,7.199e-05,2]
[405836446,1771350632272,-500.0,7.199e-05,2]
[405836447,1771350632281,-500.0,7.199e-05,2]
[405836448,1771350632291,-500.0,7.199e-05,2]
[405836449,1771350632300,-500.0,7.199e-05,2]
[405836450,1771350632309,-200.0,7.199e-05,2]
[405836451,1771350632318,-500.0,7.199e-05,2]
[405836452,1771350632327,-500.0,7.199e-05,2]
[405836453,1771350632337,-500.0,7.199e-05,2]
[405836454,1771350632346,-8493.29027618,7.2e-05,3]
[405836455,1771350632356,-40346.94495943,7.2e-05,3]
[405836456,1771350632366,-33647.45413286,7.2e-05,3]
[405836457,1771350632376,-15219.02150122,7.2e-05,3]
[405836458,1771350632389,-18523.53689091,7.2e-05,3]
[405836459,1771350632399,-15758.92094676,7.2e-05,3]
[405836460,1771350632410,-31287.51483925,7.2e-05,3]
[405836461,1771350632420,-33742.55839213,7.2e-05,3]
[405836462,1771350632431,-153.0,7.2e-05,3]
[405836463,1771350632440,-205.72036873,7.27e-05,2]
[405836464,1771350632450,-4821.61230015,7.271e-05,2]
[405836465,1771350632461,-1254.41808677,7.271e-05,2]
[405836477,1771350637367,-12358.23708627,7.1e-05,3]
[405836478,1771350637378,-1492.10478652,7.1e-05,3]
[405836479,1771350637387,-4543.19521349,7.1e-05,3]
[405836480,1771350637421,-1973.13499175,7.1e-05,3]
[405836481,1771350637470,-517.21510258,7.1e-05,3]
[405836482,1771350637486,-1452.99955753,7.1e-05,3]
[405836483,1771350637581,-763.37976,7.1e-05,3]
[405836664,1771350639423,-999.9999999,7.1e-05,3]
[405836666,1771350639435,-24324.86017816,7.1e-05,3]
[405836668,1771350639444,-17275.42734099,7.1e-05,3]
[405836670,1771350639454,-24125.59827739,7.1e-05,3]
[405836672,1771350639464,-20700.51280919,7.1e-05,3]
[405836674,1771350639474,-24125.59827739,7.1e-05,3]
[405836677,1771350639483,-3493923.96961308,7.271e-05,2]
[405836679,1771350639493,-6734.4969176,7.37e-05,2]
[405836681,1771350639503,-184.18,7.5e-05,2]
[405836683,1771350639512,-1471.46208079,7.57e-05,2]
[405836685,1771350639522,-250.0,7.896e-05,2]
[405836687,1771350639531,-420.0,7.918e-05,2]
[405836689,1771350639541,-1680.0,7.918e-05,2]
[405836691,1771350639550,-250.0,7.919e-05,2]
[405836693,1771350639561,-255.0,7.919e-05,2]
[405836695,1771350639570,-420.0,7.919e-05,2]
[405836697,1771350639580,-9999.99,8.108e-05,2]
[405836699,1771350639589,-9999.99,8.108e-05,2]
[405836701,1771350639599,-250.0,8.108e-05,2]
[405836703,1771350639609,-211.57102133,8.145e-05,2]
[405836705,1771350639619,-9999.99,8.145e-05,2]
[405836707,1771350639628,-299.99,8.145e-05,2]
[405836710,1771350639638,-999.99,8.145e-05,2]
[405836712,1771350639647,-274.73,8.145e-05,2]
[405836714,1771350639657,-9999.99,8.145e-05,2]
[405836716,1771350639667,-7670.69,8.145e-05,2]
[405836718,1771350639677,-150.99,8.145e-05,2]
[405836720,1771350639687,-150.99,8.145e-05,2]
[405836722,1771350639696,-500.0,8.219e-05,2]
[405836724,1771350639706,-500.0,8.219e-05,2]
[405836726,1771350639717,-500.0,8.219e-05,2]
[405836728,1771350639727,-572.03500068,8.219e-05,2]
[405836730,1771350639736,-500.0,8.219e-05,2]
[405836732,1771350639745,-203.0,8.278e-05,2]
[405836734,1771350639758,-903.0,8.347e-05,2]
[405836736,1771350639768,-150.000001,8.348e-05,2]
[405836739,1771350639779,-500.0,8.493e-05,2]
[405836741,1771350639794,-1500.0,8.498e-05,2]
[405836743,1771350639804,-200.0,8.628e-05,2]
[405836744,1771350639814,-587.0,8.71e-05,2]
[405836745,1771350639827,-2351.0,8.71e-05,2]
[405836746,1771350639836,-433.0,8.711e-05,2]
[405836747,1771350639846,-587.0,8.711e-05,2]
[405836748,1771350639857,-500.0,8.767e-05,2]
[405836749,1771350639866,-334.0,8.77e-05,2]
[405836750,1771350639876,-230.0,8.787e-05,2]
[405836751,1771350639886,-448.0,8.805e-05,2]
[405836752,1771350639896,-1852.42,8.856e-05,2]
[405836753,1771350639906,-438.65,8.859e-05,2]
[405836754,1771350639916,-500.0,9.041e-05,2]
[405836755,1771350639926,-463.04031662,9.117e-05,2]
[405836756,1771350639935,-500.0,9.315e-05,2]
[405836757,1771350639944,-230.75,9.38e-05,2]
[405836758,1771350639954,-829.0,9.392e-05,2]
[405836759,1771350639968,-320.0,9.392e-05,2]
[405836760,1771350639977,-1862.0,9.41e-05,2]
[405836761,1771350639987,-250.0,9.485e-05,2]
[405836762,1771350639997,-150.0,9.528e-05,2]
[405836763,1771350640008,-823.0,9.581e-05,2]
[405836764,1771350640018,-3292.0,9.581e-05,2]
[405836765,1771350640028,-736.0,9.582e-05,2]
[405836766,1771350640038,-823.0,9.582e-05,2]
[405836767,1771350640048,-150.0,9.583e-05,2]
[405836768,1771350640058,-500.0,9.589e-05,2]
[405836769,1771350640067,-150.0,9.638e-05,2]
[405836770,1771350640078,-500.0,9.669e-05,2]
[405836771,1771350640089,-500.0,9.669e-05,2]
[405836772,1771350640099,-500.0,9.669e-05,2]
[405836773,1771350640108,-500.0,9.669e-05,2]
[405836774,1771350640118,-500.0,9.669e-05,2]
[405836775,1771350640128,-500.0,9.669e-05,2]
[405836776,1771350640138,-500.0,9.669e-05,2]
[405836777,1771350640153,-150.0,9.669e-05,2]
[405836778,1771350640163,-150.0,9.669e-05,2]
[405836779,1771350640173,-500.0,9.669e-05,2]
[405836780,1771350640183,-500.0,9.669e-05,2]
[405836781,1771350640193,-500.0,9.669e-05,2]
[405836782,1771350640203,-150.0,9.692e-05,2]
[405836783,1771350640214,-497.85,9.703e-05,2]
[405836784,1771350640224,-500.0,9.724e-05,2]
[405836785,1771350640234,-500.0,9.724e-05,2]
[405836786,1771350640244,-510.76125773,9.724e-05,2]
[405836787,1771350640254,-500.0,9.724e-05,2]
[405836788,1771350640264,-500.0,9.724e-05,2]
[405836789,1771350640274,-500.0,9.724e-05,2]
[405836790,1771350640283,-500.0,9.724e-05,2]
[405836791,1771350640293,-500.0,9.724e-05,2]
[405836792,1771350640303,-500.0,9.724e-05,2]
[405836793,1771350640313,-500.87477363,9.724e-05,2]
[405836794,1771350640323,-220.15883999,9.726e-05,2]
[405836795,1771350640333,-500.0,9.726e-05,2]
[405836796,1771350640343,-500.0,9.726e-05,2]
[405836797,1771350640353,-500.0,9.726e-05,2]
[405836798,1771350640363,-500.0,9.726e-05,2]
[405836799,1771350640373,-546.0,9.726e-05,2]
[405836800,1771350640383,-150.0,9.726e-05,2]
[405836801,1771350640393,-500.0,9.726e-05,2]
[405836802,1771350640403,-500.0,9.726e-05,2]
[405836803,1771350640412,-150.0,9.747e-05,2]
[405836804,1771350640422,-378.36591542,9.779e-05,2]
[405836805,1771350640432,-500.0,9.779e-05,2]
[405836806,1771350640442,-500.0,9.779e-05,2]
[405836807,1771350640452,-500.0,9.779e-05,2]
[405836808,1771350640461,-500.0,9.779e-05,2]
[405836809,1771350640471,-500.0,9.779e-05,2]
[405836810,1771350640481,-500.0,9.779e-05,2]
[405836811,1771350640491,-500.0,9.779e-05,2]
[405836812,1771350640505,-500.0,9.781e-05,2]
[405836813,1771350640516,-500.0,9.781e-05,2]
[405836814,1771350640526,-500.0,9.781e-05,2]
[405836815,1771350640535,-500.0,9.781e-05,2]
[405836816,1771350640545,-150.0,9.781e-05,2]
[405836817,1771350640556,-546.0,9.781e-05,2]
[405836818,1771350640566,-500.0,9.781e-05,2]
[405836819,1771350640575,-500.0,9.781e-05,2]
[405836820,1771350640585,-162.20018063,9.802e-05,2]
[405836821,1771350640594,-150.0,9.802e-05,2]
[405836822,1771350640604,-500.0,9.802e-05,2]
[405836823,1771350640614,-500.0,9.802e-05,2]
[405836824,1771350640623,-150.0,9.802e-05,2]
[405836825,1771350640633,-150.0,9.802e-05,2]
[405836826,1771350640643,-150.0,9.802e-05,2]
[405836827,1771350640652,-150.0,9.802e-05,2]
[405836828,1771350640662,-500.0,9.802e-05,2]
[405836829,1771350640671,-500.0,9.802e-05,2]
[405836830,1771350640681,-150.0,9.802e-05,2]
[405836831,1771350640694,-500.0,9.802e-05,2]
[405836832,1771350640704,-150.0,9.802e-05,2]
[405836833,1771350640715,-500.0,9.802e-05,2]
[405836834,1771350640725,-200.0,9.802e-05,2]
[405836835,1771350640734,-500.0,9.833e-05,2]
[405836836,1771350640744,-500.0,9.833e-05,2]
[405836837,1771350640753,-500.0,9.833e-05,2]
[405836838,1771350640763,-500.0,9.833e-05,2]
[405836839,1771350640772,-500.0,9.833e-05,2]
[405836840,1771350640783,-500.0,9.833e-05,2]
[405836841,1771350640794,-500.0,9.833e-05,2]
[405836842,1771350640805,-500.0,9.836e-05,2]
[405836843,1771350640815,-500.0,9.836e-05,2]
[405836844,1771350640824,-500.0,9.836e-05,2]
[405836845,1771350640835,-500.0,9.836e-05,2]
[405836846,1771350640845,-150.0,9.836e-05,2]
[405836847,1771350640854,-546.0,9.836e-05,2]
[405836848,1771350640865,-500.0,9.836e-05,2]
[405836849,1771350640875,-500.0,9.836e-05,2]
[405836850,1771350640884,-150.37957529,9.857e-05,2]
[405836851,1771350640897,-500.0,9.857e-05,2]
[405836852,1771350640907,-500.0,9.857e-05,2]
[405836853,1771350640917,-244.28993987,9.857e-05,2]
[405836854,1771350640926,-150.0,9.857e-05,2]
[405836855,1771350640936,-150.0,9.857e-05,2]
[405836856,1771350640945,-150.0,9.857e-05,2]
[405836857,1771350640955,-500.0,9.857e-05,2]
[405836858,1771350640966,-500.0,9.857e-05,2]
[405836859,1771350640976,-150.0,9.857e-05,2]
[405836860,1771350640986,-500.0,9.857e-05,2]
[405836861,1771350640996,-150.0,9.857e-05,2]
[405836862,1771350641006,-500.0,9.857e-05,2]
[405836863,1771350641016,-500.0,9.863e-05,2]
[405836864,1771350641026,-500.0,9.888e-05,2]
[405836865,1771350641036,-475.49905426,9.888e-05,2]
[405836866,1771350641047,-500.0,9.888e-05,2]
[405836867,1771350641056,-500.0,9.888e-05,2]
[405836868,1771350641068,-471.12228144,9.888e-05,2]
[405836869,1771350641078,-500.0,9.888e-05,2]
[405836870,1771350641088,-500.0,9.888e-05,2]
[405836871,1771350641098,-500.0,9.89e-05,2]
[405836872,1771350641107,-500.0,9.89e-05,2]
[405836873,1771350641116,-500.0,9.89e-05,2]
[405836874,1771350641126,-500.0,9.89e-05,2]
[405836875,1771350641136,-166.5683879,9.89e-05,2]
[405836876,1771350641146,-546.0,9.89e-05,2]
[405836877,1771350641156,-500.33776257,9.89e-05,2]
[405836878,1771350641167,-500.0,9.89e-05,2]
[405836879,1771350641176,-500.0,9.912e-05,2]
[405836880,1771350641186,-152.12850518,9.912e-05,2]
[405836881,1771350641196,-150.0,9.912e-05,2]
[405836882,1771350641205,-200.36674187,9.912e-05,2]
[405836883,1771350641216,-200.18645604,9.912e-05,2]
[405836884,1771350641225,-500.0,9.912e-05,2]
[405836885,1771350641236,-500.0,9.912e-05,2]
[405836886,1771350641246,-242.84628954,9.912e-05,2]
[405836887,1771350641255,-329.95129651,9.912e-05,2]
[405836888,1771350641264,-500.0,9.912e-05,2]
[405836889,1771350641285,-150.0,9.912e-05,2]
[405836890,1771350641295,-320.0,9.914e-05,2]
[405836891,1771350641306,-500.0,9.943e-05,2]
[405836892,1771350641316,-500.0,9.943e-05,2]
[405836893,1771350641325,-500.0,9.943e-05,2]
[405836894,1771350641336,-500.0,9.943e-05,2]
[405836895,1771350641345,-500.0,9.943e-05,2]
[405836896,1771350641355,-464.38268717,9.945e-05,2]
[405836897,1771350641367,-500.0,9.945e-05,2]
[405836898,1771350641379,-500.0,9.945e-05,2]
[405836899,1771350641390,-500.0,9.945e-05,2]
[405836900,1771350641399,-546.0,9.945e-05,2]
[405836901,1771350641409,-382.17209928,9.945e-05,2]
[405836902,1771350641419,-500.0,9.966e-05,2]
[405836903,1771350641429,-200.89245722,9.966e-05,2]
[405836904,1771350641439,-500.0,9.966e-05,2]
[405836905,1771350641450,-500.0,9.966e-05,2]
[405836906,1771350641468,-500.0,9.966e-05,2]
[405836907,1771350641478,-237.36614029,9.966e-05,2]
[405836908,1771350641488,-500.0,9.998e-05,2]
[405836909,1771350641498,-500.0,9.998e-05,2]
[405836910,1771350641507,-500.0,9.998e-05,2]
[405836911,1771350641518,-500.0,9.998e-05,2]
[405836912,1771350641528,-500.0,9.998e-05,2]
[405836913,1771350641538,-500.0,0.0001,2]
[405836914,1771350641547,-500.0,0.0001,2]
[405836915,1771350641560,-500.0,0.0001,2]
[405836916,1771350641570,-546.0,0.0001,2]
[405836917,1771350641581,-151.0,0.0001,2]
[405836918,1771350641590,-151.0,0.0001,2]
[405836919,1771350641600,-151.0,0.0001,2]
[405836920,1771350641610,-151.0,0.0001,2]
[405836921,1771350641620,-151.0,0.0001,2]
[405836922,1771350641630,-151.0,0.0001,2]
[405836923,1771350641644,-151.0,0.0001,2]
[405836924,1771350641654,-543.19683373,0.0001,2]
[405836925,1771350641664,-543.19683373,0.0001,2]
[405836926,1771350641674,-543.19683373,0.0001,2]
[405836927,1771350641684,-151.0,0.0001,2]
[405836928,1771350641694,-151.0,0.0001,2]
[405836929,1771350641704,-151.0,0.0001,2]
[405836930,1771350641714,-151.0,0.0001,2]
[405836931,1771350641725,-151.0,0.0001,2]
[405836932,1771350641735,-151.0,0.0001,2]
[405836933,1771350641745,-151.0,0.0001,2]
[405836934,1771350641755,-151.0,0.0001,2]
[405836935,1771350641764,-151.0,0.0001,2]
[405836936,1771350641774,-337.0,0.0001,2]
[405836937,1771350641788,-151.0,0.0001,2]